fUSD/lending_fUSD_20240518
["ID","MTS","AMOUNT","RATE_DAILY","PERIOD"]
[327380074,1716031841155,-500.0,0.00035616,9]
[327380075,1716031841165,-500.0,0.00035616,9]
[327380076,1716031841175,-500.0,0.00035616,9]
[327380077,1716031841184,-500.0,0.00035616,9]
[327380078,1716031841194,-500.0,0.00035616,9]
[327380079,1716031841204,-500.0,0.00035616,9]
[327380080,1716031841213,-500.0,0.00035616,9]
[327380081,1716031841223,-500.0,0.00035616,9]
[327380082,1716031841233,-500.0,0.00035616,9]
[327380083,1716031841243,-500.0,0.00035616,9]
[327380084,1716031841253,-500.0,0.00035616,9]
[327380085,1716031841263,-500.0,0.00035616,9]
[327380086,1716031841274,-500.0,0.00035616,9]
[327380087,1716031841284,-500.0,0.00035616,9]
[327380088,1716031841294,-500.0,0.00035616,9]
[327380089,1716031841304,-500.0,0.00035616,9]
[327380090,1716031841314,-259.03558196,0.00035616,9]
[327380091,1716031841324,-522.73620271,0.00035616,9]
[327380092,1716031841334,-500.0,0.00035616,9]
[327380093,1716031841344,-500.0,0.00035616,9]
[327380094,1716031841353,-500.0,0.00035616,9]
[327380095,1716031841363,-500.0,0.00035616,9]
[327380096,1716031841373,-500.0,0.00035616,9]
[327380097,1716031841382,-500.0,0.00035616,9]
[327380098,1716031841588,-500.0,0.00035616,9]
[327380099,1716031841600,-500.0,0.00035616,9]
[327380100,1716031841610,-500.0,0.00035616,9]
[327380101,1716031841620,-500.0,0.00035616,9]
[327380102,1716031841631,-538.71200839,0.00035616,9]
[327380103,1716031841642,-500.0,0.00035616,9]
[327380104,1716031841652,-500.0,0.00035616,9]
[327380105,1716031841662,-266.7896379,0.00035616,9]
[327380106,1716031841672,-500.0,0.00035616,9]
[327380107,1716031841682,-500.0,0.00035616,9]
[327380108,1716031841692,-533.67332727,0.00035616,9]
[327380109,1716031841703,-500.0,0.00035616,9]
[327380110,1716031841713,-500.0,0.00035616,9]
[327380111,1716031841723,-500.0,0.00035616,9]
[327380112,1716031841733,-500.0,0.00035616,9]
[327380113,1716031841743,-456.40513437,0.00035616,9]
[327380114,1716031841753,-500.0,0.00035616,9]
[327380115,1716031841762,-500.0,0.00035616,9]
[327380116,1716031841772,-500.0,0.00035616,9]
[327380117,1716031841782,-2144.61,0.00035616,9]
[327380118,1716031841792,-204.05543115,0.00035616,9]
[327380119,1716031841802,-500.0,0.00035616,9]
[327380120,1716031841811,-526.68,0.00035616,9]
[327380121,1716031841821,-500.0,0.00035616,9]
[327380122,1716031841831,-500.0,0.00035616,7]
[327380123,1716031841841,-500.0,0.00035616,9]
[327380124,1716031841851,-500.0,0.00035616,9]
[327380125,1716031841861,-500.0,0.00035616,9]
[327380126,1716031841871,-500.0,0.00035616,2]
[327380127,1716031841881,-500.0,0.00035616,9]
[327380128,1716031841891,-500.0,0.00035616,9]
[327380129,1716031841901,-500.0,0.00035616,9]
[327380130,1716031841911,-500.0,0.00035616,9]
[327380131,1716031841921,-500.0,0.00035616,9]
[327380132,1716031841931,-500.0,0.00035616,9]
[327380133,1716031841941,-500.0,0.00035616,9]
[327380134,1716031841951,-500.0,0.00035616,9]
[327380135,1716031841961,-500.0,0.00035616,9]
[327380136,1716031841972,-500.0,0.00035616,9]
[327380137,1716031841985,-534.22,0.00035616,9]
[327380138,1716031841995,-500.0,0.00035616,9]
[327380139,1716031842006,-500.0,0.00035616,9]
[327380140,1716031842016,-500.0,0.00035616,9]
[327380141,1716031842028,-500.0,0.00035616,9]
[327380142,1716031842038,-500.0,0.00035616,9]
[327380143,1716031842048,-500.0,0.00035616,9]
[327380144,1716031842060,-500.0,0.00035616,9]
[327380145,1716031842070,-500.0,0.00035616,9]
[327380146,1716031842080,-500.0,0.00035616,9]
[327380147,1716031842090,-500.0,0.00035616,9]
[327380148,1716031842100,-500.0,0.00035616,9]
[327380149,1716031842111,-591.69,0.00035616,9]
[327380150,1716031842121,-500.0,0.00035616,9]
[327380151,1716031842131,-2497.51,0.00035616,9]
[327380152,1716031842141,-500.0,0.00035616,9]
[327380153,1716031842152,-1382.65,0.00035616,9]
[327380154,1716031842162,-523.91767344,0.00035616,9]
[327380155,1716031842171,-500.0,0.00035616,9]
[327380156,1716031842181,-500.0,0.00035616,9]
[327380157,1716031842191,-500.0,0.00035616,9]
[327380158,1716031842201,-500.0,0.00035616,9]
[327380159,1716031842211,-500.0,0.00035616,9]
[327380160,1716031842221,-508.13329132,0.00035616,9]
[327380161,1716031842231,-2044.62,0.00035616,9]
[327380162,1716031842242,-313.02228647,0.00035616,9]
[327380163,1716031842251,-500.0,0.00035616,9]
[327380164,1716031842262,-855.87,0.00035616,9]
[327380165,1716031842271,-500.0,0.00035616,9]
[327380166,1716031842282,-500.0,0.00035616,9]
[327380167,1716031842292,-500.0,0.00035616,9]
[327380168,1716031842301,-500.0,0.00035616,9]
[327380169,1716031842311,-582.09095149,0.00035616,9]
[327380170,1716031842321,-275.60411493,0.00035616,9]
[327380171,1716031842331,-2547.98,0.00035616,9]
[327380172,1716031842341,-778.14,0.00035616,9]
[327380173,1716031842351,-500.0,0.00035616,9]
[327380174,1716031842361,-500.0,0.00035616,9]
[327380175,1716031842371,-500.0,0.00035616,9]
[327380176,1716031842381,-500.0,0.00035616,9]
[327380177,1716031842391,-500.0,0.00035616,9]
[327380178,1716031842402,-503.31744269,0.00035616,9]
[327380179,1716031842412,-500.0,0.00035616,9]
[327380180,1716031842422,-500.0,0.00035616,9]
[327380181,1716031842432,-500.0,0.00035616,9]
[327380182,1716031842441,-500.0,0.00035616,9]
[327380184,1716031842452,-500.0,0.00035616,9]
[327380186,1716031842463,-500.0,0.00035616,9]
[327380187,1716031842473,-500.0,0.00035616,9]
[327380188,1716031842483,-500.0,0.00035616,9]
[327380189,1716031842493,-500.0,0.00035616,9]
[327380190,1716031842503,-500.0,0.00035616,9]
[327380191,1716031842514,-500.0,0.00035616,9]
[327380192,1716031842524,-500.0,0.00035616,9]
[327380193,1716031842533,-500.0,0.00035616,9]
[327380194,1716031842543,-500.0,0.00035616,9]
[327380195,1716031842553,-2312.63,0.00035616,9]
[327380196,1716031842563,-500.0,0.00035616,9]
[327380197,1716031842573,-500.0,0.00035616,9]
[327380198,1716031842583,-2181.76,0.00035616,9]
[327380199,1716031842593,-500.0,0.00035616,9]
[327380200,1716031842603,-3050.45,0.00035616,9]
[327380201,1716031842613,-500.0,0.00035616,9]
[327380204,1716031842623,-500.0,0.00035616,9]
[327380207,1716031842633,-500.0,0.00035616,9]
[327380209,1716031842644,-500.0,0.00035616,9]
[327380212,1716031842654,-2041.96,0.00035616,9]
[327380214,1716031842665,-500.0,0.00035616,9]
[327380216,1716031842674,-500.0,0.00035616,9]
[327380218,1716031842685,-500.0,0.00035616,9]
[327380220,1716031842695,-500.0,0.00035616,9]
[327380222,1716031842706,-500.0,0.00035616,9]
[327380224,1716031842716,-500.0,0.00035616,9]
[327380226,1716031842726,-500.0,0.00035616,9]
[327380228,1716031842736,-500.0,0.00035616,9]
[327380230,1716031842747,-500.0,0.00035616,9]
[327380232,1716031842757,-500.0,0.00035616,9]
[327380235,1716031842768,-322.12748069,0.00035616,9]
[327380237,1716031842778,-500.0,0.00035616,9]
[327380239,1716031842788,-500.0,0.00035616,9]
[327380241,1716031842799,-500.0,0.00035616,9]
[327380243,1716031842808,-500.0,0.00035616,9]
[327380245,1716031842820,-500.0,0.00035616,9]
[327380246,1716031842830,-500.0,0.00035616,9]
[327380247,1716031842840,-500.0,0.00035616,9]
[327380248,1716031842849,-500.0,0.00035616,9]
[327380249,1716031842860,-500.0,0.00035616,9]
[327380250,1716031842869,-500.0,0.00035616,9]
[327380251,1716031842880,-500.0,0.00035616,9]
[327380252,1716031842889,-500.0,0.00035616,9]
[327380253,1716031842901,-500.0,0.00035616,9]
[327380254,1716031842911,-522.54,0.00035616,9]
[327380255,1716031842922,-546.74719124,0.00035616,9]
[327380256,1716031842932,-500.0,0.00035616,9]
[327380257,1716031842942,-500.0,0.00035616,9]
[327380258,1716031842953,-500.0,0.00035616,9]
[327380259,1716031842963,-500.0,0.00035616,9]
[327380260,1716031842980,-500.0,0.00035616,9]
[327380261,1716031842990,-500.0,0.00035616,9]
[327380262,1716031843000,-500.0,0.00035616,9]
[327380263,1716031843011,-500.0,0.00035616,9]
[327380264,1716031843020,-500.0,0.00035616,9]
[327380265,1716031843030,-500.0,0.00035616,9]
[327380266,1716031843040,-500.0,0.00035616,9]
[327380267,1716031843049,-500.0,0.00035616,9]
[327380268,1716031843061,-150.0,0.00035616,9]
[327380269,1716031843071,-500.0,0.00035616,9]
[327380270,1716031843081,-500.0,0.00035616,9]
[327380271,1716031843091,-500.0,0.00035616,9]
[327380272,1716031843101,-500.0,0.00035616,9]
[327380273,1716031843111,-500.0,0.00035616,9]
[327380274,1716031843121,-500.0,0.00035616,9]
[327380275,1716031843132,-500.0,0.00035616,9]
[327380276,1716031843144,-640.49535832,0.00035616,9]
[327380277,1716031843155,-500.0,0.00035616,9]
[327380278,1716031843165,-593.51,0.00035616,9]
[327380279,1716031843175,-500.0,0.00035616,9]
[327380280,1716031843186,-2488.38,0.00035616,9]
[327380281,1716031843196,-500.0,0.00035616,9]
[327380282,1716031843206,-521.39008083,0.00035616,9]
[327380283,1716031843216,-500.0,0.00035616,9]
[327380284,1716031843226,-618.28,0.00035616,9]
[327380285,1716031843236,-500.0,0.00035616,9]
[327380286,1716031843246,-500.0,0.00035616,9]
[327380287,1716031843256,-500.0,0.00035616,9]
[327380288,1716031843266,-500.0,0.00035616,9]
[327380289,1716031843276,-500.0,0.00035616,9]
[327380290,1716031843286,-3594.78,0.00035616,9]
[327380291,1716031843296,-500.0,0.00035616,9]
[327380292,1716031843307,-500.0,0.00035616,9]
[327380293,1716031843317,-580.92,0.00035616,9]
[327380294,1716031843327,-535.99930232,0.00035616,9]
[327380295,1716031843336,-500.0,0.00035616,9]
[327380296,1716031843346,-500.0,0.00035616,9]
[327380297,1716031843356,-500.0,0.00035616,9]
[327380298,1716031843366,-500.0,0.00035616,9]
[327380299,1716031843376,-500.0,0.00035616,9]
[327380300,1716031843386,-500.0,0.00035616,9]
[327380301,1716031843396,-500.0,0.00035616,9]
[327380302,1716031843406,-500.0,0.00035616,9]
[327380303,1716031843416,-500.0,0.00035616,9]
[327380304,1716031843427,-500.0,0.00035616,9]
[327380305,1716031843436,-516.18,0.00035616,9]
[327380306,1716031843446,-500.0,0.00035616,9]
[327380307,1716031843456,-2492.68,0.00035616,9]
[327380308,1716031843465,-500.0,0.00035616,9]
[327380309,1716031843476,-2968.4,0.00035616,9]
[327380310,1716031843485,-590.8033606,0.00035616,9]
[327380311,1716031843496,-500.0,0.00035616,9]
[327380312,1716031843506,-628.0,0.00035616,9]
[327380313,1716031843516,-500.0,0.00035616,9]
[327380314,1716031843526,-1777.01,0.00035616,9]
[327380315,1716031843536,-500.0,0.00035616,9]
[327380316,1716031843546,-892.94,0.00035616,9]
[327380317,1716031843556,-2567.74,0.00035616,9]
[327380318,1716031843566,-500.0,0.00035616,9]
[327380319,1716031843576,-500.0,0.00035616,9]
[327380320,1716031843586,-500.0,0.00035616,9]
[327380321,1716031843596,-514.22,0.00035616,9]
[327380322,1716031843607,-500.0,0.00035616,9]
[327380323,1716031843617,-500.0,0.00035616,9]
[327380324,1716031843628,-500.0,0.00035616,9]
[327380325,1716031843638,-500.0,0.00035616,9]
[327380326,1716031843648,-500.0,0.00035616,9]
[327380327,1716031843658,-500.0,0.00035616,9]
[327380328,1716031843669,-500.0,0.00035616,9]
[327380329,1716031843678,-500.0,0.00035616,9]
[327380330,1716031843688,-500.0,0.00035616,9]
[327380331,1716031843698,-500.0,0.00035616,9]
[327380332,1716031843709,-611.86,0.00035616,9]
[327380333,1716031843719,-506.09501748,0.00035616,9]
[327380334,1716031843729,-500.0,0.00035616,9]
[327380335,1716031843738,-565.60466707,0.00035616,9]
[327380336,1716031843748,-3118.77,0.00035616,9]
[327380337,1716031843758,-928.14,0.00035616,9]
[327380338,1716031843768,-500.0,0.00035616,9]
[327380339,1716031843779,-500.0,0.00035616,9]
[327380340,1716031843789,-861.93,0.00035616,9]
[327380341,1716031843799,-500.0,0.00035616,9]
[327380342,1716031843809,-9190.63,0.00035616,9]
[327380343,1716031843819,-500.0,0.00035616,9]
[327380344,1716031843828,-10334.44,0.00035616,9]
[327380345,1716031843837,-500.0,0.00035616,9]
[327380346,1716031843847,-500.0,0.00035616,9]
[327380347,1716031843857,-153.83129129,0.00035616,9]
[327380348,1716031843867,-500.0,0.00035616,9]
[327380349,1716031843877,-500.0,0.00035616,9]
[327380350,1716031843887,-500.0,0.00035616,9]
[327380351,1716031843897,-500.0,0.00035616,9]
[327380352,1716031843906,-4937.76,0.00035616,9]
[327380353,1716031843915,-1358.16,0.00035616,9]
[327380354,1716031843925,-395.91811038,0.00035616,9]
[327380355,1716031843934,-749.31,0.00035616,9]
[327380356,1716031843943,-580.68,0.00035616,9]
[327380357,1716031843953,-500.0,0.00035616,9]
[327380358,1716031843962,-839.37,0.00035616,9]
[327380359,1716031843972,-500.0,0.00035616,9]
[327380360,1716031843984,-2451.47,0.00035616,9]
[327380361,1716031843994,-7209.08,0.00035616,9]
[327380362,1716031844003,-500.0,0.00035616,9]
[327380363,1716031844012,-500.0,0.00035616,9]
[327380364,1716031844023,-500.0,0.00035616,9]
[327380365,1716031844032,-500.0,0.00035616,9]
[327380366,1716031844042,-500.0,0.00035616,9]
[327380367,1716031844051,-649.53,0.00035616,9]
[327380368,1716031844062,-500.0,0.00035616,9]
[327380369,1716031844071,-1659.33,0.00035616,9]
[327380370,1716031844081,-663.64,0.00035616,9]
[327380371,1716031844090,-500.0,0.00035616,9]
[327380372,1716031844099,-500.0,0.00035616,9]
[327380373,1716031844109,-820.94,0.00035616,9]
[327380374,1716031844118,-500.0,0.00035616,9]
[327380375,1716031844128,-500.0,0.00035616,9]
[327380376,1716031844137,-1268.96,0.00035616,9]
[327380377,1716031844148,-801.58,0.00035616,9]
[327380378,1716031844157,-500.0,0.00035616,9]
[327380379,1716031844166,-500.0,0.00035616,9]
[327380380,1716031844176,-500.0,0.00035616,9]
[327380381,1716031844185,-500.0,0.00035616,9]
[327380382,1716031844195,-500.0,0.00035616,9]
[327380383,1716031844204,-500.0,0.00035616,9]
[327380384,1716031844213,-500.0,0.00035616,9]
[327380385,1716031844222,-500.0,0.00035616,9]
[327380386,1716031844232,-1781.31,0.00035616,9]
[327380387,1716031844241,-1005.75,0.00035616,9]
[327380388,1716031844250,-500.0,0.00035616,9]
[327380389,1716031844259,-582.17,0.00035616,9]
[327380390,1716031844268,-500.0,0.00035616,9]
[327380391,1716031844278,-2563.97,0.00035616,9]
[327380392,1716031844287,-500.0,0.00035616,9]
[327380393,1716031844298,-500.0,0.00035616,9]
[327380394,1716031844307,-607.08,0.00035616,9]
[327380395,1716031844317,-500.0,0.00035616,9]
[327380397,1716031844327,-500.0,0.00035616,9]
[327380398,1716031844337,-500.0,0.00035616,9]
[327380399,1716031844346,-1385.67,0.00035616,9]
[327380400,1716031844356,-500.0,0.00035616,9]
[327380401,1716031844365,-500.0,0.00035616,9]
[327380402,1716031844375,-782.82,0.00035616,9]
[327380403,1716031844385,-715.47,0.00035616,9]
[327380404,1716031844395,-500.0,0.00035616,9]
[327380405,1716031844404,-530.28,0.00035616,9]
[327380406,1716031844414,-500.0,0.00035616,9]
[327380407,1716031844423,-500.0,0.00035616,9]
[327380408,1716031844433,-533.61,0.00035616,9]
[327380409,1716031844443,-500.0,0.00035616,9]
[327380410,1716031844452,-500.0,0.00035616,9]
[327380411,1716031844462,-500.0,0.00035616,9]
[327380412,1716031844472,-547.39,0.00035616,9]
[327380413,1716031844482,-651.42,0.00035616,9]
[327380414,1716031844491,-500.0,0.00035616,9]
[327380415,1716031844501,-500.0,0.00035616,9]
[327380416,1716031844511,-2124.51,0.00035616,9]
[327380417,1716031844520,-507.19378729,0.00035616,9]
[327380418,1716031844529,-500.0,0.00035616,9]
[327380419,1716031844539,-610.14,0.00035616,9]
[327380420,1716031844548,-500.0,0.00035616,9]
[327380421,1716031844557,-500.0,0.00035616,9]
[327380422,1716031844567,-500.0,0.00035616,9]
[327380423,1716031844576,-500.0,0.00035616,9]
[327380424,1716031844586,-500.0,0.00035616,9]
[327380425,1716031844595,-500.0,0.00035616,9]
[327380426,1716031844605,-500.0,0.00035616,9]
[327380427,1716031844614,-500.0,0.00035616,9]
[327380428,1716031844624,-566.32,0.00035616,9]
[327380429,1716031844633,-500.0,0.00035616,9]
[327380430,1716031844643,-500.0,0.00035616,9]
[327380431,1716031844652,-500.0,0.00035616,9]
[327380432,1716031844661,-500.0,0.00035616,9]
[327380433,1716031844671,-500.0,0.00035616,9]
[327380434,1716031844681,-569.38,0.00035616,9]
[327380435,1716031844690,-545.78,0.00035616,9]
[327380436,1716031844699,-642.1,0.00035616,9]
[327380437,1716031844709,-1532.27,0.00035616,9]
[327380438,1716031844718,-540.05403779,0.00035616,9]
[327380439,1716031844728,-510.97914918,0.00035616,9]
[327380440,1716031844737,-881.9,0.00035616,9]
[327380441,1716031844746,-500.0,0.00035616,9]
[327380442,1716031844756,-500.0,0.00035616,9]
[327380443,1716031844766,-664.74,0.00035616,9]
[327380444,1716031844775,-500.0,0.00035616,9]
[327380445,1716031844784,-500.0,0.00035616,9]
[327380446,1716031844794,-632.89,0.00035616,9]
[327380447,1716031844803,-500.0,0.00035616,9]
[327380448,1716031844813,-1490.44,0.00035616,9]
[327380449,1716031844822,-500.0,0.00035616,9]
[327380450,1716031844831,-636.51,0.00035616,9]
[327380451,1716031844841,-1096.4,0.00035616,9]
[327380452,1716031844850,-500.0,0.00035616,9]
[327380453,1716031844859,-500.0,0.00035616,9]
[327380454,1716031844869,-500.0,0.00035616,9]
[327380455,1716031844878,-500.0,0.00035616,9]
[327380456,1716031844889,-500.0,0.00035616,9]
[327380457,1716031844900,-500.0,0.00035616,9]
[327380458,1716031844910,-500.0,0.00035616,9]
[327380459,1716031844923,-500.0,0.00035616,9]
[327380460,1716031844933,-629.55,0.00035616,9]
[327380461,1716031844942,-756.7,0.00035616,9]
[327380462,1716031844952,-500.0,0.00035616,9]
[327380463,1716031844961,-500.0,0.00035616,9]
[327380464,1716031844975,-500.0,0.00035616,9]
[327380465,1716031844985,-715.77,0.00035616,9]
[327380466,1716031844994,-500.0,0.00035616,9]
[327380467,1716031845004,-953.98,0.00035616,9]
[327380468,1716031845016,-500.0,0.00035616,9]
[327380469,1716031845026,-500.0,0.00035616,9]
[327380470,1716031845036,-500.0,0.00035616,9]
[327380471,1716031845046,-500.0,0.00035616,9]
[327380472,1716031845056,-3154.66,0.00035616,9]
[327380473,1716031845066,-757.3,0.00035616,9]
[327380474,1716031845076,-500.0,0.00035616,9]
[327380475,1716031845085,-500.0,0.00035616,9]
[327380476,1716031845095,-500.0,0.00035616,9]
[327380477,1716031845104,-726.85,0.00035616,9]
[327380478,1716031845114,-2269.55,0.00035616,9]
[327380479,1716031845123,-500.0,0.00035616,9]
[327380480,1716031845133,-500.0,0.00035616,9]
[327380481,1716031845142,-934.22,0.00035616,9]
[327380482,1716031845153,-500.0,0.00035616,9]
[327380483,1716031845163,-500.0,0.00035616,9]
[327380484,1716031845172,-500.0,0.00035616,9]
[327380485,1716031845181,-500.0,0.00035616,9]
[327380486,1716031845191,-500.0,0.00035616,9]
[327380487,1716031845200,-500.0,0.00035616,9]
[327380488,1716031845210,-500.0,0.00035616,9]
[327380489,1716031845219,-500.0,0.00035616,9]
[327380490,1716031845229,-500.0,0.00035616,9]
[327380491,1716031845239,-500.0,0.00035616,9]
[327380492,1716031845248,-509.42160411,0.00035616,9]
[327380493,1716031845257,-750.98,0.00035616,9]
[327380494,1716031845267,-393.43647546,0.00035616,9]
[327380495,1716031845277,-500.0,0.00035616,9]
[327380496,1716031845287,-500.0,0.00035616,9]
[327380497,1716031845297,-500.0,0.00035616,9]
[327380498,1716031845306,-709.86,0.00035616,9]
[327380499,1716031845315,-500.0,0.00035616,9]
[327380500,1716031845325,-1713.82,0.00035616,9]
[327380501,1716031845334,-500.0,0.00035616,9]
[327380502,1716031845344,-500.0,0.00035616,9]
[327380503,1716031845353,-600.26,0.00035616,9]
[327380504,1716031845363,-500.0,0.00035616,9]
[327380505,1716031845372,-500.0,0.00035616,9]
[327380506,1716031845382,-7628.41,0.00035616,9]
[327380507,1716031845392,-500.0,0.00035616,9]
[327380509,1716031845403,-500.0,0.00035616,9]
[327380512,1716031845412,-500.0,0.00035616,9]
[327380515,1716031845422,-500.0,0.00035616,9]
[327380519,1716031845431,-500.0,0.00035616,9]
[327380521,1716031845440,-500.0,0.00035616,9]
[327380524,1716031845450,-777.19,0.00035616,9]
[327380527,1716031845460,-500.0,0.00035616,9]
[327380529,1716031845469,-645.63,0.00035616,9]
[327380532,1716031845479,-500.0,0.00035616,9]
[327380534,1716031845488,-500.0,0.00035616,9]
[327380537,1716031845497,-500.0,0.00035616,9]
[327380540,1716031845509,-1007.56,0.00035616,9]
[327380542,1716031845518,-500.0,0.00035616,9]
[327380545,1716031845528,-500.0,0.00035616,9]
[327380546,1716031845538,-500.0,0.00035616,9]
[327380547,1716031845548,-767.06,0.00035616,9]
[327380548,1716031845557,-500.0,0.00035616,9]
[327380549,1716031845568,-500.0,0.00035616,9]
[327380550,1716031845578,-1074.76,0.00035616,9]
[327380551,1716031845588,-500.0,0.00035616,9]
[327380552,1716031845598,-500.0,0.00035616,9]
[327380553,1716031845608,-3676.47,0.00035616,9]
[327380554,1716031845619,-2547.09,0.00035616,9]
[327380555,1716031845629,-1023.17,0.00035616,9]
[327380556,1716031845639,-500.0,0.00035616,9]
[327380557,1716031845649,-813.57,0.00035616,9]
[327380558,1716031845659,-611.15,0.00035616,9]
[327380559,1716031845669,-500.0,0.00035616,9]
[327380560,1716031845678,-500.0,0.00035616,9]
[327380561,1716031845688,-3937.02,0.00035616,9]
[327380562,1716031845698,-962.74,0.00035616,9]
[327380563,1716031845707,-500.0,0.00035616,9]
[327380564,1716031845895,-3385.11,0.00035616,9]
[327380565,1716031845904,-5470.06,0.00035616,9]
[327380566,1716031845914,-581.3,0.00035616,9]
[327380567,1716031845924,-500.0,0.00035616,9]
[327380568,1716031845934,-3253.68,0.00035616,9]
[327380569,1716031845944,-500.0,0.00035616,9]
[327380570,1716031845954,-500.0,0.00035616,9]
[327380571,1716031845964,-683.02,0.00035616,9]
[327380572,1716031845977,-741.29,0.00035616,9]
[327380573,1716031845987,-500.0,0.00035616,9]
[327380574,1716031845996,-500.0,0.00035616,9]
[327380575,1716031846007,-1370.84,0.00035616,9]
[327380576,1716031846018,-550.3,0.00035616,9]
[327380577,1716031846028,-500.0,0.00035616,9]
[327380578,1716031846038,-2191.54,0.00035616,9]
[327380579,1716031846048,-500.0,0.00035616,9]
[327380580,1716031846060,-500.0,0.00035616,9]
[327380581,1716031846070,-500.0,0.00035616,9]
[327380582,1716031846080,-500.0,0.00035616,9]
[327380583,1716031846090,-2488.49,0.00035616,9]
[327380584,1716031846099,-500.0,0.00035616,9]
[327380585,1716031846110,-935.66,0.00035616,9]
[327380586,1716031846120,-500.0,0.00035616,9]
[327380587,1716031846129,-500.0,0.00035616,9]
[327380588,1716031846139,-718.18,0.00035616,9]
[327380589,1716031846149,-8079.62,0.00035616,9]
[327380590,1716031846159,-1312.29,0.00035616,2]
[327380591,1716031846169,-529.75790639,0.00035616,9]
[327380592,1716031846180,-500.0,0.00035616,9]
[327380593,1716031846190,-500.0,0.00035616,9]
[327380594,1716031846200,-500.0,0.00035616,9]
[327380595,1716031846211,-500.0,0.00035616,9]
[327380596,1716031846221,-3517.66,0.00035616,9]
[327380597,1716031846232,-500.0,0.00035616,9]
[327380598,1716031846242,-500.0,0.00035616,9]
[327380599,1716031846252,-500.0,0.00035616,9]
[327380600,1716031846263,-1645.71,0.00035616,9]
[327380601,1716031846273,-2324.6,0.00035616,9]
[327380602,1716031846284,-500.0,0.00035616,9]
[327380603,1716031846294,-500.0,0.00035616,9]
[327380604,1716031846304,-500.0,0.00035616,9]
[327380605,1716031846315,-500.0,0.00035616,9]
[327380606,1716031846325,-500.0,0.00035616,9]
[327380607,1716031846335,-714.21,0.00035616,9]
[327380608,1716031846345,-500.0,0.00035616,9]
[327380609,1716031846355,-500.0,0.00035616,9]
[327380610,1716031846365,-500.0,0.00035616,9]
[327380611,1716031846375,-500.0,0.00035616,9]
[327380612,1716031846385,-1077.39,0.00035616,9]
[327380613,1716031846395,-500.0,0.00035616,9]
[327380614,1716031846406,-500.0,0.00035616,9]
[327380615,1716031846416,-500.0,0.00035616,9]
[327380616,1716031846427,-500.0,0.00035616,9]
[327380617,1716031846437,-500.0,0.00035616,9]
[327380618,1716031846447,-500.0,0.00035616,9]
[327380619,1716031846456,-500.0,0.00035616,9]
[327380620,1716031846466,-655.03,0.00035616,9]
[327380621,1716031846476,-701.87,0.00035616,9]
[327380622,1716031846485,-500.0,0.00035616,9]
[327380623,1716031846495,-500.0,0.00035616,9]
[327380624,1716031846505,-659.75,0.00035616,9]